Workbook

Sheet Anfang
B1: ÜBER DIESE VORLAGE
B2: Verwenden Sie die Arbeitsmappe "Veranstaltungsbudget", um die im Rahmen einer Veranstaltung angefallenen Ausgaben und Einnahmen nachzuverfolgen.
B3: Füllen Sie "Name der Veranstaltung" aus, und geben Sie Details in den Tabellen der Arbeitsblätter "Ausgaben" und "Einnahmen" ein.
B4: Die Gesamtausgaben und Gesamteinnahmen werden automatisch berechnet.
B5: Die Zusammenfassung von Gewinn und Verlust und das Diagramm werden im Arbeitsblatt "Zusammenfassung_Gewinn–Verlust" automatisch aktualisiert.
B6: Anmerkung:
B7: Weitere Anweisungen wurden in Spalte A auf jedem Arbeitsblatt bereitgestellt. Diese Texte wurden absichtlich ausgeblendet. Um Text zu entfernen, wählen Sie Spalte A und dann ENTF aus.
B8: Um mehr über Tabellen zu erfahren, drücken Sie die UMSCHALTTASTE und dann F10 innerhalb einer Tabelle, und wählen Sie die Option TABELLE und dann ALTERNATIVTEXT aus.

Sheet Ausgaben
A1: Geben Sie die geschätzten und tatsächlichen Ausgaben für die einzelnen Kategorien in den jeweiligen Tabellen dieses Arbeitsblatts und den Veranstaltungsnamen in Zelle D1 ein, um den Titel des Arbeitsblatts und der anderen Arbeitsblätter anzupassen. Der Untertitel dieses Arbeitsblatts steht in Zelle H1. Hilfreiche Anweisungen zur Verwendung dieses Arbeitsblatts stehen in Zellen in dieser Spalte. Die nächste Anweisung finden Sie in Zelle A3. | B1: Veranstaltungsbudget für | D1: Name der Veranstaltung | H1: AUSGABEN
A3: Die Bezeichnung "Gesamtausgaben" steht in der Zelle rechts, die Bezeichnung "Geschätzt" in Zelle G3 und die Bezeichnung "Tatsächlich" in Zelle H3. | B3: GESAMTAUSGABEN | G3: Geschätzt | H3: Tatsächlich
A4: Die geschätzten Gesamtausgaben in Zelle G4 und die tatsächlichen Gesamtausgaben in Zelle H4 werden automatisch berechnet. Die nächste Anweisung finden Sie in Zelle A6. | G4: =SUM(C11,C19,C25,C32,G11,G19,G24) -> 882.00 € | H4: =SUM(D11,D19,D25,D32,H11,H19,H24) -> 302.00 €
A6: Geben Sie die Ausgaben für den Veranstaltungsort in der Tabelle ab der Zelle rechts und die Ausgaben für Erfrischungen ab Zelle F6 ein. Die nächste Anweisung finden Sie in Zelle A13. | B6: Veranstaltungsort | C6: Geschätzt | D6: Tatsächlich | F6: Erfrischungen | G6: Geschätzt | H6: Tatsächlich
B7: Gebühren für Raum und Halle | C7: 500.00 € | F7: Essen
B8: Personal am Veranstaltungsort | F8: Getränke | G8: 20.00 €
B9: Ausstattung | F9: Tischwäsche | H9: 20.00 €
B10: Tische und Stühle | F10: Personal und Trinkgelder
B11: Ergebnis | C11: =SUBTOTAL(109,VeranstaltungsortAusgaben[Geschätzt]) -> 500.00 € | D11: =SUBTOTAL(103,VeranstaltungsortAusgaben[Tatsächlich]) -> 0.00 € | F11: Ergebnis | G11: =SUBTOTAL(109,ErfrischungenAusgaben[Geschätzt]) -> 20.00 € | H11: =SUBTOTAL(103,ErfrischungenAusgaben[Tatsächlich]) -> 1.00 €
A13: Geben Sie die Ausgaben für Dekorationen in der Tabelle ab der Zelle rechts und die Ausgaben für Programme ab Zelle F13 ein. Die nächste Anweisung finden Sie in Zelle A21. | B13: Dekorationen | C13: Geschätzt | D13: Tatsächlich | F13: Programm | G13: Geschätzt | H13: Tatsächlich
B14: Blumen | C14: 200.00 € | D14: 300.00 € | F14: Künstler
B15: Kerzen | F15: Referenten | G15: 30.00 €
B16: Beleuchtung | F16: Reise
B17: Ballons | F17: Hotel
B18: Papierlieferungen | F18: Sonstiges
B19: Ergebnis | C19: =SUBTOTAL(109,DekorationenAusgaben[Geschätzt]) -> 200.00 € | D19: =SUBTOTAL(109,DekorationenAusgaben[Tatsächlich]) -> 300.00 € | F19: Ergebnis | G19: =SUBTOTAL(109,ProgrammAusgaben[Geschätzt]) -> 30.00 € | H19: =SUBTOTAL(103,ProgrammAusgaben[Tatsächlich]) -> 0.00 €
A21: Geben Sie die Ausgaben für Öffentlichkeitsarbeit in der Tabelle ab der Zelle rechts und die Ausgaben für Preise ab Zelle F21 ein. Die nächste Anweisung finden Sie in Zelle A27. | B21: Öffentlichkeitsarbeit | C21: Geschätzt | D21: Tatsächlich | F21: Preise | G21: Geschätzt | H21: Tatsächlich
B22: Grafikarbeiten | F22: Schleifen/Plaketten/Pokale
B23: Kopieren/Drucken | C23: 20.00 € | F23: Geschenke | G23: 100.00 €
B24: Porto | F24: Summe | G24: =SUBTOTAL(109,PreiseAusgaben[Geschätzt]) -> 100.00 € | H24: =SUBTOTAL(103,PreiseAusgaben[Tatsächlich]) -> 0.00 €
B25: Ergebnis | C25: =SUBTOTAL(109,ÖffentlichkeitsarbeitAusgaben[Geschätzt]) -> 20.00 € | D25: =SUBTOTAL(103,ÖffentlichkeitsarbeitAusgaben[Tatsächlich]) -> 0.00 €
A27: Geben Sie die Ausgaben für Sonstiges in der Tabelle ab der Zelle rechts ein. | B27: Sonstiges | C27: Geschätzt | D27: Tatsächlich
B28: Telefon | D28: 13.00 €
B29: Beförderung | C29: 12.00 €
B30: Büromaterial
B31: Faxdienste
B32: Ergebnis | C32: =SUBTOTAL(109,SonstigeAusgaben[Geschätzt]) -> 12.00 € | D32: =SUBTOTAL(103,SonstigeAusgaben[Tatsächlich]) -> 1.00 €

Sheet Einnahmen
A1: Geben Sie die geschätzten und tatsächlichen Einnahmen für jede Kategorie in den jeweiligen Tabellen dieses Arbeitsblatts ein. Der Titel dieses Arbeitsblatts wird in den Zellen rechts automatisch aktualisiert. Der Untertitel steht in Zelle G1. Hilfreiche Anweisungen zur Verwendung dieses Arbeitsblatts stehen in Zellen in dieser Spalte. Die nächste Anweisung finden Sie in Zelle A3. | B1: =Ausgaben!B1 -> Veranstaltungsbudget für | D1: =Ausgaben!D1 -> Name der Veranstaltung | G1: EINNAHMEN
A3: Die Bezeichnung "Gesamteinnahmen" steht in der Zelle rechts, die Bezeichnung "Geschätzt" in Zelle F3 und die Bezeichnung "Tatsächlich" in Zelle G3. | B3: GESAMTEINNAHMEN | F3: Geschätzt | G3: Tatsächlich
A4: Die geschätzten Gesamteinnahmen werden in Zelle F4 und die tatsächlichen Gesamteinnahmen in Zelle G4 automatisch berechnet. | F4: =SUM(Eintritte[[#Totals],[Geschätzte Einnahmen]],AnzeigenImProgramm[[#Totals],[Geschätzte Einnahmen]],AusstellerUndLieferanten[[#Totals],[Geschätzte Einnahmen]],VerkaufVonArtikeln[[#Totals],[Geschätzte Einnahmen]]) -> 1,936.00 € | G4: =SUM(Eintritte[[#Totals],[Tatsächliche Einnahmen]],AnzeigenImProgramm[[#Totals],[Tatsächliche Einnahmen]],AusstellerUndLieferanten[[#Totals],[Tatsächliche Einnahmen]],VerkaufVonArtikeln[[#Totals],[Tatsächliche Einnahmen]]) -> 1,831.00 €
A5: Die Bezeichnung "Eintritte" steht in der Zelle rechts. | B5: EINTRITTE
A6: Geben Sie in der Tabelle ab der Zelle rechts die geschätzte und tatsächliche Anzahl der Eintritte mit den Ticketpreisen ein. Die geschätzten und tatsächlichen Einnahmen aus Eintritten werden automatisch berechnet. Die nächste Anweisung finden Sie in Zelle A11. | B6: Geschätzte Anzahl | C6: Tatsächliche Anzahl | D6: Typ | E6: Preis | F6: Geschätzte Einnahmen | G6: Tatsächliche Einnahmen
B7: 300 | C7: 278 | D7: Erwachsene @ | E7: 5.00 € | F7: =B7*E7 -> 1,500.00 € | G7: =C7*E7 -> 1,390.00 €
B8: 197 | C8: 195 | D8: Kinder @ | E8: 2.00 € | F8: =B8*E8 -> 394.00 € | G8: =C8*E8 -> 390.00 €
B9: 42 | C9: 51 | D9: Andere @ | E9: 1.00 € | F9: =B9*E9 -> 42.00 € | G9: =C9*E9 -> 51.00 €
B10: Ergebnis | F10: =SUBTOTAL(109,Eintritte[Geschätzte Einnahmen]) -> 1,936.00 € | G10: =SUBTOTAL(109,Eintritte[Tatsächliche Einnahmen]) -> 1,831.00 €
A11: Die Bezeichnung "Werbeanzeigen im Programm" steht in der Zelle rechts. | B11: ANZEIGEN IM PROGRAMM
A12: Geben Sie in der Tabelle ab der Zelle rechts die geschätzte und tatsächliche Anzahl der Werbeanzeigen im Programm und die Anzeigenpreise ein. Die geschätzten und tatsächlichen Einnahmen aus Werbeanzeigen werden automatisch berechnet. Die nächste Anweisung finden Sie in Zelle A17. | B12: Geschätzte Anzahl | C12: Tatsächliche Anzahl | D12: Typ | E12: Preis | F12: Geschätzte Einnahmen | G12: Tatsächliche Einnahmen
B13: 12 | D13: Deckblätter @ | F13: =B13*E13 -> 0.00 € | G13: =C13*E13 -> 0.00 €
C14: 158 | D14: Halbe Seiten @ | F14: =B14*E14 -> 0.00 € | G14: =C14*E14 -> 0.00 €
B15: 4 | D15: Viertelseiten @ | F15: =B15*E15 -> 0.00 € | G15: =C15*E15 -> 0.00 €
B16: Ergebnis | F16: =SUBTOTAL(109,AnzeigenImProgramm[Geschätzte Einnahmen]) -> 0.00 € | G16: =SUBTOTAL(109,AnzeigenImProgramm[Tatsächliche Einnahmen]) -> 0.00 €
A17: Die Bezeichnung "Aussteller oder Lieferanten" steht in der Zelle rechts. | B17: AUSSTELLER/LIEFERANTEN
A18: Geben Sie in der Tabelle ab der Zelle rechts die geschätzte und tatsächliche Anzahl von Ausstellern und Lieferanten sowie die Messestandpreise ein. Die geschätzten und tatsächlichen Einnahmen werden automatisch berechnet. Die nächste Anweisung finden Sie in Zelle A23. | B18: Geschätzte Anzahl | C18: Tatsächliche Anzahl | D18: Typ | E18: Preis | F18: Geschätzte Einnahmen | G18: Tatsächliche Einnahmen
B19: 23 | D19: Große Stände @ | F19: =B19*E19 -> 0.00 € | G19: =C19*E19 -> 0.00 €
B20: 354 | D20: Mittelgroße Stände @ | F20: =B20*E20 -> 0.00 € | G20: =C20*E20 -> 0.00 €
B21: 56 | D21: Kleine Stände @ | F21: =B21*E21 -> 0.00 € | G21: =C21*E21 -> 0.00 €
B22: Ergebnis | F22: =SUBTOTAL(109,AusstellerUndLieferanten[Geschätzte Einnahmen]) -> 0.00 € | G22: =SUBTOTAL(109,AusstellerUndLieferanten[Tatsächliche Einnahmen]) -> 0.00 €
A23: Die Bezeichnung "Verkauf von Artikeln" steht in der Zelle rechts. | B23: VERKAUF VON ARTIKELN
A24: Geben Sie in der Tabelle ab der Zelle rechts die geschätzte und tatsächliche Anzahl der verkauften Artikel und die Artikelpreise ein. Die geschätzten und tatsächlichen Einnahmen werden automatisch berechnet. | B24: Geschätzte Anzahl | C24: Tatsächliche Anzahl | D24: Typ | E24: Preis | F24: Geschätzte Einnahmen | G24: Tatsächliche Einnahmen
D25: Artikel @ | F25: =B25*E25 -> 0.00 € | G25: =C25*E25 -> 0.00 €
B26: 123 | D26: Artikel @ | F26: =B26*E26 -> 0.00 € | G26: =C26*E26 -> 0.00 €
D27: Artikel @ | F27: =B27*E27 -> 0.00 € | G27: =C27*E27 -> 0.00 €
B28: 13 | D28: Artikel @ | F28: =B28*E28 -> 0.00 € | G28: =C28*E28 -> 0.00 €
B29: Ergebnis | F29: =SUBTOTAL(109,VerkaufVonArtikeln[Geschätzte Einnahmen]) -> 0.00 € | G29: =SUBTOTAL(109,VerkaufVonArtikeln[Tatsächliche Einnahmen]) -> 0.00 €

Sheet Zusammenfassung_Gewinn–Verlust
A1: Die Zusammenfassung von Gewinn und Verlust und das Diagramm mit den Gesamteinnahmen und -ausgaben werden in diesem Arbeitsblatt automatisch aktualisiert. Der Titel dieses Arbeitsblatts wird in den Zellen rechts automatisch aktualisiert. Der Untertitel steht in Zelle G1 und G2. Hilfreiche Anweisungen zur Verwendung dieses Arbeitsblatts stehen in Zellen in dieser Spalte. Die nächste Anweisung finden Sie in Zelle A3. | B1: =Ausgaben!B1 -> Veranstaltungsbudget für | D1: =Ausgaben!D1 -> Name der Veranstaltung | G1: GEWINN
G2: Zusammenfassung Verlust
A3: Ein Balkendiagramm, in dem die geschätzten Einnahmen und Ausgaben mit den tatsächlichen Einnahmen und Ausgaben verglichen werden, befindet sich in Zelle E3. | E3: Ein Balkendiagramm, in dem die geschätzten Einnahmen und Ausgaben mit den tatsächlichen Einnahmen und Ausgaben verglichen werden, befindet sich in dieser Zelle.
A4: Die Tabelle "Zusammenfassung", die in der Zelle rechts beginnt, wird automatisch aktualisiert. Die nächste Anweisung finden Sie in Zelle A8. | B4: Summe | C4: Geschätzt | D4: Tatsächlich
B5: Gesamteinnahmen | C5: =Einnahmen!F10 -> 1,936.00 € | D5: =Einnahmen!F4 -> 1,936.00 €
B6: Gesamtausgaben | C6: =Ausgaben!G4 -> 882.00 € | D6: =Ausgaben!H4 -> 302.00 €
A8: Der geschätzte Gesamtgewinn oder -verlust wird in Zelle C8 automatisch berechnet und der tatsächliche Gesamtgewinn oder -verlust in Zelle D8. | B8: Gesamtgewinn (oder Verlust) | C8: =C5-C6 -> 1,054.00 € | D8: =D5-D6 -> 1,634.00 €
